bitfinex/quotes_BTCUSD_20241223
["timestamp","ask_amount","ask_price","bid_price","bid_amount"]
[1734983444527,0.0011712,93140.0,93131.0,0.21475]
[1734983445163,0.0001712,93140.0,93131.0,0.21475]
[1734983445394,0.0011712,93140.0,93131.0,0.21475]
[1734983446393,0.0011712,93140.0,93132.0,0.214748]
[1734983447215,0.0011712,93140.0,93129.0,0.214754]
[1734983447449,0.0011712,93140.0,93126.0,0.214762]
[1734983447611,0.02158962,93139.0,93126.0,0.214762]
[1734983447818,0.02158962,93139.0,93125.0,0.02541619]
[1734983447819,0.214737,93137.0,93125.0,0.02541619]
[1734983448186,0.214752,93131.0,93116.0,0.0766]
[1734983448387,0.214752,93131.0,93116.0,0.291385]
[1734983449361,0.214742,93135.0,93120.0,0.214776]
[1734983449509,0.001,93131.0,93120.0,0.214776]
[1734983451317,0.0821,93136.0,93120.0,0.214776]
[1734983451518,0.214742,93135.0,93120.0,0.214776]
[1734983451720,0.001,93131.0,93120.0,0.214776]
[1734983452095,0.31872532,93137.0,93120.0,0.214776]
[1734983452298,0.214739,93137.0,93120.0,0.214776]
[1734983452524,0.001,93136.0,93127.0,8.55e-05]
[1734983452908,0.0001712,93140.0,93127.0,0.2148435]
[1734983453107,0.002,93137.0,93124.0,0.214767]
[1734983453411,0.002,93137.0,93116.0,0.0766]
[1734983453577,0.002,93137.0,93122.0,0.214771]
[1734983453786,0.002,93137.0,93129.0,0.214755]
[1734983453983,0.002,93137.0,93133.0,0.42949]
[1734983454367,0.0001712,93140.0,93133.0,0.214745]
[1734983454789,0.001,93136.0,93133.0,0.214745]
[1734983455251,0.0001712,93140.0,93133.0,0.214745]
[1734983455955,0.001,93136.0,93133.0,0.214745]
[1734983456250,0.0001712,93140.0,93133.0,0.214745]
[1734983456670,0.0001712,93140.0,93129.0,0.214755]
[1734983456864,0.0001712,93140.0,93127.0,0.214758]
[1734983457068,0.2149032,93140.0,93120.0,0.10398632]
[1734983457226,0.27933682,93140.0,93119.0,0.0481]
[1734983457423,0.27933682,93140.0,93119.0,0.15208632]
[1734983457632,0.214735,93138.0,93120.0,0.214776]
[1734983457834,0.214751,93131.0,93119.0,0.0481]
[1734983458033,0.214746,93134.0,93119.0,0.0481]
[1734983458256,0.214746,93134.0,93118.0,0.402658]
[1734983458436,0.001,93136.0,93121.0,0.214772]
[1734983458833,0.006,93138.0,93121.0,0.214772]
[1734983459038,0.006,93138.0,93124.0,0.214766]
[1734983459243,0.003,93134.0,93124.0,0.214766]
[1734983459469,0.291246,93133.0,93114.0,0.214789]
[1734983459903,0.291246,93133.0,93114.0,0.22037919]
[1734983460103,0.214748,93132.0,93117.0,0.214781]
[1734983460530,0.0765,93133.0,93120.0,0.214774]
[1734983460736,0.214748,93132.0,93114.0,0.22037919]
[1734983460962,0.214753,93130.0,93114.0,0.00559019]
[1734983461540,0.214753,93130.0,93113.0,0.214792]
[1734983461748,0.214753,93130.0,93112.0,0.214792]
[1734983461960,0.0555988,93131.0,93115.0,0.214786]
[1734983462403,0.002,93130.0,93111.0,0.214795]
[1734983462598,0.05281871,93130.0,93111.0,0.214795]
[1734983462774,0.05081871,93130.0,93111.0,0.214795]
[1734983463796,0.214755,93129.0,93111.0,0.139795]
[1734983464012,0.214755,93129.0,93115.0,8.55e-05]
[1734983464835,0.004,93130.0,93115.0,0.2148715]
[1734983465045,0.002,93130.0,93115.0,8.55e-05]
[1734983465250,0.214753,93131.0,93115.0,8.55e-05]
[1734983465426,0.002,93129.0,93115.0,8.55e-05]
[1734983465629,0.001,93129.0,93115.0,8.55e-05]
[1734983466645,0.001,93130.0,93115.0,8.55e-05]
[1734983466871,0.05881262,93130.0,93115.0,8.55e-05]
[1734983467076,0.214755,93129.0,93115.0,8.55e-05]
[1734983467502,0.001,93130.0,93116.0,0.214785]
[1734983467652,0.38759528,93133.0,93116.0,0.214785]
[1734983467847,0.38759528,93133.0,93117.0,0.00107382]
[1734983467848,0.002,93130.0,93117.0,0.00107382]
[1734983468052,0.002,93130.0,93117.0,0.02266855]
[1734983468256,0.001,93129.0,93122.0,0.214769]
[1734983468530,0.001,93129.0,93105.0,0.00621901]
[1734983468675,0.001,93129.0,93126.0,0.21476]
[1734983469078,0.001,93130.0,93128.0,0.214758]
[1734983469276,0.001,93130.0,93129.0,0.10505994]
[1734983469510,0.001,93130.0,93129.0,0.10398632]
[1734983469712,0.001,93130.0,93129.0,0.28477709]
[1734983469899,0.001,93130.0,93129.0,0.20398632]
[1734983470100,0.09634928,93135.0,93134.0,0.1]
[1734983470467,0.0824,93178.0,93139.0,0.1]
[1734983470668,0.0824,93178.0,93139.0,0.20505963]
[1734983470878,0.00107386,93177.0,93139.0,0.20505963]
[1734983471298,0.00107386,93177.0,93139.0,0.38230749]
[1734983471474,0.214653,93174.0,93139.0,0.38123418]
[1734983471677,0.0824,93178.0,93139.0,0.38123418]
[1734983471678,0.0824,93178.0,93139.0,0.28158632]
[1734983471883,0.0011712,93140.0,93139.0,0.28158632]
[1734983472110,0.0011712,93140.0,93139.0,0.88817751]
[1734983472313,2e-07,93140.0,93139.0,0.93537751]
[1734983472513,0.09669331,93178.0,93153.0,0.5294]
[1734983472725,0.00033057,93158.0,93154.0,0.20505951]
[1734983472926,0.00033057,93158.0,93157.0,0.1]
[1734983473136,0.00033057,93158.0,93157.0,0.25225947]
[1734983473467,0.00033057,93158.0,93157.0,0.25118632]
[1734983473670,0.00033057,93158.0,93157.0,0.60517264]
[1734983473873,0.00033057,93158.0,93157.0,0.32236769]
[1734983474062,0.00033057,93158.0,93139.0,0.54979192]
[1734983474291,0.00033057,93158.0,93143.0,0.214721]
[1734983474502,0.00033057,93158.0,93155.0,0.09631913]
[1734983474902,0.00133057,93158.0,93155.0,0.09631913]
[1734983475315,0.00033057,93158.0,93155.0,0.09631913]
[1734983475507,0.00133057,93158.0,93145.0,0.214718]
[1734983475922,0.00133057,93158.0,93146.0,0.214716]
[1734983476155,0.00133057,93158.0,93155.0,0.002]
[1734983476503,0.00133057,93158.0,93142.0,0.214725]
[1734983476718,0.00033057,93158.0,93146.0,0.214716]
[1734983477686,0.00033057,93158.0,93150.0,0.214705]
[1734983477897,0.023,93155.0,93126.0,0.09631913]
[1734983478101,0.214731,93140.0,93126.0,0.09631913]
[1734983478304,0.214724,93143.0,93126.0,0.09631913]
[1734983478524,0.00107386,93142.0,93126.0,0.09631913]
[1734983479160,0.00107386,93142.0,93122.0,0.21477]
[1734983479365,0.00107386,93142.0,93122.0,0.31875632]
[1734983479803,0.364701,93153.0,93122.0,0.31875632]
[1734983480009,0.15,93151.0,93126.0,0.001]
[1734983480216,0.19179361,93152.0,93126.0,0.001]
[1734983480217,0.10398632,93150.0,93126.0,0.001]
[1734983480412,0.214737,93137.0,93126.0,0.001]
[1734983481037,0.214749,93132.0,93126.0,0.001]
[1734983481160,0.0782,93131.0,93107.0,0.23640415]
[1734983481366,0.214759,93128.0,93107.0,0.214805]
[1734983481567,0.214763,93126.0,93122.0,0.001]
[1734983481813,0.214753,93130.0,93107.0,0.214805]
[1734983482030,0.214753,93130.0,93108.0,0.00107382]
[1734983482253,0.214753,93130.0,93126.0,0.001]
[1734983482456,0.214753,93130.0,93108.0,0.00107382]
[1734983482759,0.001,93126.0,93108.0,0.00107382]
[1734983483098,0.001,93126.0,93111.0,0.214795]
[1734983483298,0.001,93126.0,93107.0,0.214805]
[1734983483573,0.001,93126.0,93108.0,0.10506014]
[1734983483760,0.001,93126.0,93109.0,0.214802]
[1734983484470,0.215763,93126.0,93108.0,0.10398632]
[1734983484670,0.214763,93126.0,93109.0,0.26872186]
[1734983484901,0.001,93126.0,93109.0,0.26872186]
[1734983485267,0.214753,93130.0,93109.0,0.05391986]
[1734983485470,0.001,93126.0,93110.0,0.214799]
[1734983486852,0.214753,93130.0,93110.0,0.214799]
[1734983487188,0.001,93126.0,93110.0,0.214799]
[1734983487487,0.214753,93130.0,93110.0,0.214799]
[1734983487894,0.001,93126.0,93110.0,0.214799]
[1734983488208,0.001,93126.0,93109.0,8.55e-05]
[1734983488404,0.214756,93129.0,93109.0,8.55e-05]
[1734983488611,0.2655264,93129.0,93109.0,8.55e-05]
[1734983489331,0.2655264,93129.0,93110.0,0.001]
[1734983489534,0.214773,93122.0,93110.0,0.001]
[1734983489912,0.214758,93128.0,93110.0,0.215799]
[1734983490526,0.214758,93128.0,93109.0,0.2148865]
[1734983490886,0.001,93126.0,93109.0,0.2148865]
[1734983491119,0.214765,93125.0,93109.0,8.55e-05]
[1734983491929,0.214765,93125.0,93109.0,0.0010855]
[1734983492579,0.214765,93125.0,93109.0,0.0020855]
[1734983492804,0.215758,93128.0,93109.0,0.2168865]
[1734983493018,0.214758,93128.0,93109.0,0.2168865]
[1734983493365,0.214758,93128.0,93110.0,0.04372837]
[1734983493792,0.047,93130.0,93111.0,0.00107387]
[1734983493994,0.001,93128.0,93112.0,0.10398632]
[1734983494161,0.001,93128.0,93113.0,0.00107377]
[1734983494361,0.09669331,93148.0,93115.0,0.1465]
[1734983494621,0.09669331,93148.0,93116.0,0.10505992]
[1734983494762,0.005,93128.0,93127.0,0.21476]
[1734983495138,0.002,93128.0,93127.0,0.31874632]
[1734983496018,0.002,93128.0,93127.0,0.31974632]
[1734983496585,0.214716,93146.0,93131.0,0.21475]
[1734983496953,0.214718,93145.0,93128.0,0.214758]
[1734983497222,0.0583434,93144.0,93131.0,0.214749]
[1734983497447,0.15,93148.0,93134.0,0.214742]
[1734983497649,0.15,93148.0,93135.0,0.214741]
[1734983498204,0.004,93145.0,93135.0,0.214741]
[1734983498408,0.004,93145.0,93128.0,0.10398632]
[1734983498629,0.00415934,93145.0,93128.0,0.10505992]
[1734983499045,0.00015934,93145.0,93128.0,0.10505992]
[1734983499454,0.00415934,93145.0,93134.0,0.214743]
[1734983499755,0.002,93144.0,93134.0,0.214743]
[1734983500114,0.00415934,93145.0,93134.0,0.214743]
[1734983500452,0.00415934,93145.0,93135.0,0.214742]
[1734983500661,0.00015934,93145.0,93135.0,0.214742]
[1734983500867,0.00215934,93145.0,93129.0,0.214755]
[1734983501037,0.01637527,93145.0,93129.0,0.214755]
[1734983501241,0.00015934,93145.0,93133.0,0.214745]
[1734983501438,0.00215934,93145.0,93133.0,0.214745]
[1734983502019,0.00315934,93145.0,93133.0,0.214745]
[1734983502669,0.00215934,93145.0,93133.0,0.214745]
[1734983502917,0.00015934,93145.0,93133.0,0.214745]
[1734983503420,0.00015934,93145.0,93133.0,0.139745]
[1734983503653,0.00015934,93145.0,93131.0,0.214751]
[1734983503838,0.00015934,93145.0,93131.0,0.429502]
[1734983504069,0.00015934,93145.0,93131.0,0.214751]
[1734983504450,0.00015934,93145.0,93117.0,0.214781]
[1734983504451,0.0759,93143.0,93117.0,0.214781]
[1734983504672,0.0759,93143.0,93119.0,0.10398632]
[1734983504874,0.214725,93142.0,93123.0,0.214767]
[1734983505074,0.214725,93142.0,93124.0,0.214767]
[1734983505409,0.0759,93143.0,93123.0,0.214767]
[1734983505410,0.214737,93137.0,93123.0,0.214767]
[1734983505616,0.0495,93139.0,93123.0,0.214767]
[1734983505816,0.214735,93138.0,93123.0,0.2703261]
[1734983506246,0.214754,93130.0,93115.0,0.214787]
[1734983506447,0.0779,93129.0,93113.0,0.21479]
[1734983507743,0.0789,93129.0,93113.0,0.21479]
[1734983508547,0.0789,93129.0,93110.0,0.214799]
[1734983508769,0.0789,93129.0,93108.0,0.214804]
[1734983509032,0.02289,93128.0,93108.0,0.214804]
[1734983509226,0.429521,93127.0,93110.0,0.214799]
[1734983509987,0.429521,93127.0,93108.0,0.214804]
[1734983510875,0.429521,93127.0,93110.0,0.214799]
[1734983511721,0.430521,93127.0,93110.0,0.214799]
[1734983511941,0.2903656,93127.0,93113.0,8.55e-05]
[1734983512109,0.21576,93127.0,93113.0,8.55e-05]
[1734983512508,0.001,93127.0,93113.0,8.55e-05]
[1734983512712,0.002,93127.0,93113.0,8.55e-05]
[1734983512910,0.003,93127.0,93113.0,8.55e-05]
[1734983513489,0.002,93127.0,93113.0,8.55e-05]
[1734983513698,0.004,93127.0,93108.0,0.214804]
[1734983513931,0.004,93127.0,93109.0,0.04361487]
[1734983514102,0.002,93127.0,93111.0,0.214795]
[1734983514306,0.0779,93129.0,93111.0,0.214795]
[1734983514506,0.215762,93127.0,93111.0,0.214795]
[1734983514722,0.216762,93127.0,93111.0,0.214795]
[1734983514930,0.215762,93127.0,93111.0,0.214795]
[1734983515665,0.214762,93127.0,93111.0,0.214795]
[1734983516254,0.215762,93127.0,93111.0,0.214795]
[1734983516437,0.001,93127.0,93116.0,0.214784]
[1734983516642,0.001,93127.0,93117.0,0.00107379]
[1734983516840,0.001,93127.0,93116.0,0.214784]
[1734983517418,0.0779,93129.0,93117.0,0.429566]
[1734983517603,0.0779,93129.0,93117.0,0.214783]
[1734983518248,0.0779,93129.0,93117.0,0.139783]
[1734983518463,0.0779,93129.0,93116.0,0.214784]
[1734983519239,0.001,93127.0,93116.0,0.214784]
[1734983519619,0.0779,93129.0,93116.0,0.214784]
[1734983519823,0.292656,93129.0,93112.0,0.214795]
[1734983520021,0.21476,93127.0,93109.0,8.55e-05]
[1734983520457,0.21476,93127.0,93110.0,0.214799]
[1734983520862,0.214769,93123.0,93109.0,8.55e-05]
[1734983521068,0.21476,93127.0,93109.0,8.55e-05]
[1734983521352,0.42953,93125.0,93109.0,8.55e-05]
[1734983521585,0.0779,93129.0,93109.0,8.55e-05]
[1734983521780,0.214772,93122.0,93109.0,8.55e-05]
[1734983522188,0.0789,93129.0,93109.0,8.55e-05]
[1734983522360,0.0827,93120.0,93109.0,8.55e-05]
[1734983522593,0.10398632,93121.0,93109.0,8.55e-05]
[1734983522594,0.260599,93110.0,93109.0,8.55e-05]
[1734983523208,0.10567857,93110.0,93109.0,8.55e-05]
[1734983523408,0.18107857,93110.0,93109.0,8.55e-05]
[1734983523673,0.33107857,93110.0,93109.0,8.55e-05]
[1734983523884,0.214837,93094.0,93091.0,0.02157573]
[1734983524051,0.0763,93093.0,93091.0,0.02210846]
[1734983524260,0.214841,93092.0,93091.0,0.00053273]
[1734983524455,0.0463,93093.0,93091.0,0.00053273]
[1734983524860,0.261139,93093.0,93091.0,0.00053273]
[1734983525073,0.262139,93093.0,93091.0,0.00053273]
[1734983525850,0.0473,93093.0,93091.0,0.00053273]
[1734983526273,0.0483,93093.0,93091.0,0.00053273]
[1734983526685,0.0473,93093.0,93091.0,0.00053273]
[1734983526867,0.0463,93093.0,93091.0,0.00053273]
[1734983527083,0.0503,93093.0,93091.0,0.00053273]
[1734983527907,0.265139,93093.0,93091.0,0.00053273]
[1734983528456,0.262139,93093.0,93073.0,0.2288434]
[1734983528660,0.214841,93092.0,93073.0,0.2288434]
[1734983529085,0.26266999,93093.0,93073.0,0.4437274]
[1734983529301,0.26166999,93093.0,93073.0,0.46878157]
[1734983529507,0.26266999,93093.0,93073.0,0.46878157]
[1734983529800,0.00253099,93093.0,93074.0,0.10506059]
[1734983530012,0.00053099,93093.0,93090.0,0.214843]
[1734983530219,0.001,93092.0,93091.0,0.10506044]
[1734983531498,0.00053099,93093.0,93092.0,0.214841]
[1734983531706,0.00153099,93093.0,93083.0,0.0465]
[1734983531842,0.00153099,93093.0,93075.0,0.0794]
[1734983532051,0.00053099,93093.0,93078.0,0.214872]
[1734983532249,0.04354909,93093.0,93078.0,0.214872]
[1734983532715,0.04354909,93093.0,93082.0,0.214862]
[1734983533137,0.00053099,93093.0,93082.0,0.214862]
[1734983533337,0.00053099,93093.0,93078.0,0.139872]
[1734983533544,0.00053099,93093.0,93076.0,0.10398632]
[1734983533901,0.00053099,93093.0,93078.0,0.214872]
[1734983534110,0.00053099,93093.0,93082.0,0.214862]
[1734983534309,0.00053099,93093.0,93086.0,0.214854]
[1734983534917,0.00053099,93093.0,93083.0,0.214361]
[1734983535315,0.00053099,93093.0,93083.0,0.26768293]
[1734983535535,0.00053099,93093.0,93078.0,0.429745]
[1734983535880,0.00053099,93093.0,93082.0,0.214863]
[1734983536266,0.00153099,93093.0,93082.0,0.214863]
[1734983536685,0.00153099,93093.0,93090.0,0.214844]
[1734983536834,0.00153099,93093.0,93082.0,0.10398632]
[1734983537044,0.00153099,93093.0,93082.0,0.10506046]
[1734983537590,0.00053099,93093.0,93087.0,0.214851]
[1734983537794,0.00053099,93093.0,93082.0,0.10398632]
[1734983537999,0.00153099,93093.0,93088.0,0.214849]
[1734983538424,0.00053099,93093.0,93082.0,0.10398632]
[1734983538635,0.18228632,93092.0,93078.0,8.55e-05]
[1734983538857,0.214857,93086.0,93078.0,8.55e-05]
[1734983539074,0.03328173,93091.0,93078.0,8.55e-05]
[1734983539075,0.214864,93082.0,93078.0,8.55e-05]
[1734983539840,0.429728,93082.0,93078.0,8.55e-05]
[1734983540049,0.214864,93082.0,93078.0,8.55e-05]
[1734983540252,0.429728,93082.0,93078.0,8.55e-05]
[1734983540482,0.15,93080.0,93078.0,8.55e-05]
[1734983540654,0.364868,93080.0,93078.0,8.55e-05]
[1734983540855,0.46885432,93080.0,93078.0,8.55e-05]
[1734983541480,0.30078632,93079.0,93078.0,8.55e-05]
[1734983541680,0.37648632,93079.0,93078.0,8.55e-05]
[1734983542091,0.45730815,93079.0,93078.0,8.55e-05]
[1734983542568,0.0757,93079.0,93078.0,8.55e-05]
[1734983542850,0.15,93086.0,93078.0,8.55e-05]
[1734983543204,0.0757,93087.0,93078.0,8.55e-05]
[1734983543409,0.00053099,93093.0,93079.0,0.10398632]
[1734983543615,0.00053099,93093.0,93088.0,0.214849]
[1734983544637,0.00053099,93093.0,93079.0,0.10398632]
[1734983545018,0.00153099,93093.0,93089.0,0.214846]
[1734983545457,0.00053099,93093.0,93089.0,0.214846]
[1734983545657,0.00153099,93093.0,93089.0,0.214846]
[1734983546082,0.00253099,93093.0,93089.0,0.4511776]
[1734983546301,0.00153099,93093.0,93091.0,0.214843]
[1734983546514,0.00253099,93093.0,93092.0,0.00107404]
[1734983546934,0.00153099,93093.0,93092.0,0.10506036]
[1734983547137,0.00153099,93093.0,93092.0,0.1845706]
[1734983547344,0.00053099,93093.0,93092.0,0.53246036]
[1734983547473,0.00053099,93093.0,93092.0,0.53138632]
[1734983547681,0.00153099,93093.0,93092.0,0.53138632]
[1734983548453,0.00170199,93093.0,93092.0,0.53138632]
[1734983548729,0.00270199,93093.0,93092.0,0.53138632]
[1734983548891,0.00170199,93093.0,93092.0,0.53138632]
[1734983549084,0.00270199,93093.0,93092.0,0.53538632]
[1734983549510,0.00270199,93093.0,93092.0,0.53138632]
[1734983549721,0.00370199,93093.0,93092.0,0.53538632]
[1734983549915,0.00170199,93093.0,93092.0,0.53138632]
[1734983550322,0.00370199,93093.0,93092.0,1.20287264]
[1734983550676,9.9e-07,93093.0,93092.0,1.20287264]
[1734983551089,0.000171,93128.0,93110.0,0.1086639]
[1734983551292,0.000171,93128.0,93111.0,0.10506003]
[1734983551510,0.000171,93128.0,93127.0,0.21476]
[1734983552625,0.000171,93128.0,93123.0,0.214768]
[1734983553265,0.000171,93128.0,93123.0,0.139768]
[1734983553586,0.000171,93128.0,93117.0,0.00107368]
[1734983553742,0.000171,93128.0,93123.0,0.214767]
[1734983554161,0.000171,93128.0,93125.0,0.214765]
[1734983554362,0.000171,93128.0,93127.0,0.21476]
[1734983554563,0.000171,93128.0,93127.0,0.31874632]
[1734983556135,0.15,93161.0,93127.0,0.10398632]
[1734983556377,0.00015934,93150.0,93145.0,0.214718]
[1734983556586,0.00015934,93150.0,93145.0,0.0214718]
[1734983556719,0.00015934,93150.0,93145.0,0.214717]
[1734983557126,0.00015934,93150.0,93139.0,0.214731]
[1734983557622,0.00015934,93150.0,93143.0,0.214722]
[1734983557975,0.00015934,93150.0,93133.0,0.214744]
[1734983558185,0.00015934,93150.0,93145.0,0.001]
[1734983558795,0.00015934,93150.0,93145.0,0.003]
[1734983558999,0.00015934,93150.0,93145.0,0.001]
[1734983559208,0.082,93149.0,93145.0,0.002]
[1734983559679,0.082,93149.0,93145.0,0.001]
[1734983559827,0.082,93149.0,93137.0,0.214735]
[1734983560173,0.082,93149.0,93139.0,0.214732]
[1734983560410,0.00215934,93150.0,93125.0,0.214765]
[1734983560577,0.001,93149.0,93130.0,0.1086639]
[1734983560775,0.00015934,93150.0,93146.0,0.214716]
[1734983560972,0.001,93149.0,93146.0,0.214716]
[1734983561184,0.001,93149.0,93143.0,0.214721]
[1734983561389,0.00033034,93150.0,93137.0,0.214736]
[1734983561567,0.00033034,93150.0,93131.0,0.10398632]
[1734983561743,0.001,93149.0,93131.0,0.10398632]
[1734983561945,0.002,93149.0,93131.0,0.10398632]
[1734983562154,0.002,93149.0,93133.0,0.214746]
[1734983562550,0.002,93149.0,93146.0,0.214715]
[1734983562896,0.00033034,93150.0,93146.0,0.214715]
[1734983563279,0.00033034,93150.0,93142.0,0.214724]
[1734983563488,0.00033034,93150.0,93142.0,0.2361954]
[1734983563874,0.00033034,93150.0,93146.0,0.002]
[1734983564722,0.00033034,93150.0,93146.0,0.216716]
[1734983564941,0.00033034,93150.0,93146.0,0.214716]
[1734983565682,0.00033034,93150.0,93130.0,0.1086639]
[1734983565683,0.00033034,93150.0,93121.0,0.0458]
[1734983565884,0.214712,93148.0,93122.0,0.10398632]
[1734983566104,0.02150423,93147.0,93122.0,0.214771]
[1734983566306,0.27549055,93147.0,93122.0,0.214771]
[1734983566552,0.49020455,93147.0,93146.0,0.001]
[1734983566757,0.214732,93140.0,93122.0,0.214771]
[1734983567162,0.214732,93140.0,93122.0,0.215771]
[1734983567536,0.214747,93133.0,93122.0,0.001]
[1734983567942,0.10398632,93139.0,93122.0,0.001]
[1734983568144,0.2274,93138.0,93122.0,0.001]
[1734983568348,0.214769,93123.0,93122.0,0.001]
[1734983568928,0.2148,93110.0,93094.0,0.214836]
[1734983569133,0.15,93122.0,93090.0,0.0775]
[1734983569134,0.214786,93116.0,93096.0,0.214831]
[1734983569334,0.15,93120.0,93100.0,0.214822]
[1734983569519,0.237518,93119.0,93100.0,0.214822]
[1734983569880,0.214788,93115.0,93100.0,0.214822]
[1734983570073,0.237518,93119.0,93100.0,0.21498169]
[1734983570253,0.003,93116.0,93100.0,0.21498169]
[1734983570467,0.003,93116.0,93100.0,0.21598169]
[1734983570668,0.02274,93119.0,93104.0,0.214812]
[1734983571003,0.003,93115.0,93104.0,0.214812]
[1734983571196,0.003,93115.0,93100.0,0.00115969]
[1734983571423,0.003,93115.0,93100.0,0.21598169]
[1734983571639,0.003,93115.0,93101.0,0.21482]
[1734983572568,0.15,93120.0,93101.0,0.21482]
[1734983572770,0.215778,93119.0,93101.0,0.21482]
[1734983572977,0.001,93116.0,93101.0,0.21482]
[1734983573188,0.001,93116.0,93100.0,0.00015969]
[1734983573392,0.001,93115.0,93094.0,0.214834]
[1734983573596,0.002,93115.0,93103.0,0.214815]
[1734983573903,0.001,93115.0,93103.0,0.214815]
[1734983574140,0.00115928,93116.0,93101.0,8.54e-05]
[1734983574315,0.00115928,93116.0,93101.0,0.2149044]
[1734983574586,0.00115928,93116.0,93101.0,8.54e-05]
[1734983575586,0.00015928,93116.0,93101.0,8.54e-05]
[1734983575950,0.001,93115.0,93101.0,8.54e-05]
[1734983576160,0.21479,93114.0,93101.0,8.54e-05]
[1734983576352,0.02277631,93113.0,93101.0,8.54e-05]
[1734983576551,0.214807,93107.0,93101.0,8.54e-05]
[1734983576755,0.214811,93105.0,93101.0,8.54e-05]
[1734983576954,0.00107398,93104.0,93101.0,8.54e-05]
[1734983577198,0.00107398,93106.0,93101.0,8.54e-05]
[1734983578362,0.214804,93108.0,93101.0,8.54e-05]
[1734983578566,0.00107398,93107.0,93101.0,8.54e-05]
[1734983579188,0.214808,93106.0,93101.0,8.54e-05]
[1734983579393,0.00107398,93105.0,93101.0,8.54e-05]
[1734983580414,0.00207398,93106.0,93101.0,8.54e-05]
[1734983581019,0.49124823,93105.0,93101.0,8.54e-05]
[1734983581217,0.214815,93103.0,93101.0,8.54e-05]
[1734983581419,0.00107398,93102.0,93101.0,8.54e-05]
[1734983582063,0.1050603,93102.0,93101.0,8.54e-05]
[1734983582419,0.1873603,93102.0,93101.0,8.54e-05]
[1734983582812,0.1883603,93102.0,93101.0,8.54e-05]
[1734983583023,0.1873603,93102.0,93101.0,8.54e-05]
[1734983583472,0.1883603,93102.0,93101.0,8.54e-05]
[1734983583648,0.1893603,93102.0,93101.0,8.54e-05]
[1734983583850,0.2123603,93102.0,93101.0,8.54e-05]
[1734983584050,0.21128632,93102.0,93101.0,8.54e-05]
[1734983585313,0.30685795,93102.0,93101.0,8.54e-05]
[1734983585666,0.18828632,93102.0,93101.0,8.54e-05]
[1734983585866,0.10598632,93102.0,93101.0,8.54e-05]
[1734983586073,0.002,93102.0,93101.0,8.54e-05]
[1734983586317,0.10598632,93102.0,93101.0,8.54e-05]
[1734983586492,0.1070603,93102.0,93101.0,8.54e-05]
[1734983586706,0.1050603,93102.0,93101.0,8.54e-05]
[1734983587487,0.1060603,93102.0,93101.0,8.54e-05]
[1734983587702,0.001,93102.0,93101.0,8.54e-05]
[1734983587937,0.00107398,93104.0,93101.0,8.54e-05]
[1734983588106,0.001,93102.0,93101.0,8.54e-05]
[1734983588791,0.00107398,93104.0,93101.0,8.54e-05]
[1734983588951,0.001,93102.0,93101.0,8.54e-05]
[1734983589350,0.00107398,93104.0,93101.0,8.54e-05]
[1734983589749,0.0777,93118.0,93101.0,8.54e-05]
[1734983589930,0.214759,93128.0,93101.0,8.54e-05]
[1734983590134,0.0777,93130.0,93102.0,0.0795]
[1734983590354,0.214758,93128.0,93104.0,0.214813]
[1734983590629,0.00107398,93127.0,93109.0,0.2148]
[1734983591376,0.00107398,93127.0,93109.0,0.21414585]
[1734983591741,0.00107398,93127.0,93113.0,0.429584]
[1734983591944,0.0777,93130.0,93113.0,0.429584]
[1734983591945,0.00107398,93129.0,93113.0,0.429584]
[1734983592151,0.15,93130.0,93113.0,0.429584]
[1734983592294,0.15,93130.0,93115.0,0.214788]
[1734983592499,0.00515928,93116.0,93115.0,0.214788]
[1734983592701,0.00015928,93116.0,93115.0,0.338688]
[1734983593022,0.00015928,93116.0,93115.0,0.44267432]
[1734983593591,0.00115928,93116.0,93115.0,0.44467432]
[1734983594048,0.00115928,93116.0,93115.0,0.44267432]
[1734983594263,0.00215928,93116.0,93115.0,0.44467432]
[1734983594462,0.00215928,93116.0,93115.0,0.54866064]
[1734983595631,0.00315928,93116.0,93115.0,0.54866064]
[1734983596199,0.00315928,93116.0,93115.0,0.44467432]
[1734983596553,0.00015928,93116.0,93115.0,0.44267432]
[1734983596753,0.00115928,93116.0,93115.0,0.44367432]
[1734983597335,0.00015928,93116.0,93115.0,0.44267432]
[1734983597549,0.00033028,93116.0,93115.0,0.338688]
[1734983597748,0.00033028,93116.0,93113.0,0.214791]
[1734983597947,0.00033028,93116.0,93106.0,0.0817]
[1734983598559,0.00033028,93116.0,93115.0,0.002]
[1734983598815,0.00133028,93116.0,93115.0,0.008]
[1734983599023,0.00133028,93116.0,93112.0,0.214794]
[1734983599580,0.00033028,93116.0,93112.0,0.214794]
[1734983599775,0.00033028,93116.0,93112.0,0.429588]
[1734983599993,0.00233028,93116.0,93112.0,0.429588]
[1734983600264,0.00333028,93116.0,93112.0,0.429588]
[1734983600591,0.00933028,93116.0,93112.0,0.429588]
[1734983601641,0.00133028,93116.0,93112.0,0.429588]
[1734983602463,0.00233028,93116.0,93112.0,0.429588]
[1734983604512,0.00233028,93116.0,93114.0,0.21479]
[1734983604730,0.00233028,93116.0,93115.0,0.23115994]
[1734983604873,0.00233028,93116.0,93115.0,0.23008632]
[1734983605281,0.00133028,93116.0,93115.0,0.23008632]
[1734983605463,0.00233028,93116.0,93115.0,0.23008632]
[1734983605680,0.00133028,93116.0,93115.0,0.23008632]
[1734983605878,0.00133028,93116.0,93115.0,0.49207264]
[1734983606078,0.00133028,93116.0,93115.0,0.48407264]
[1734983606288,0.00133028,93116.0,93115.0,0.48707264]
[1734983606649,0.00233028,93116.0,93115.0,0.49607264]
[1734983607022,0.00233028,93116.0,93115.0,0.39208632]
[1734983607633,0.00233028,93116.0,93115.0,0.38908632]
[1734983607812,0.00233028,93116.0,93115.0,0.39308632]
[1734983609164,0.00233028,93116.0,93115.0,0.38908632]
[1734983609298,0.00033028,93116.0,93115.0,0.38008632]
[1734983609507,0.00033028,93116.0,93115.0,0.38808632]
[1734983609708,0.00133028,93116.0,93115.0,0.49207264]
[1734983610012,0.00133028,93116.0,93115.0,0.49507264]
[1734983610220,0.00133028,93116.0,93115.0,0.39108632]
[1734983610825,0.00133028,93116.0,93115.0,0.51408632]
[1734983611030,0.0001708,93146.0,93119.0,0.1]